[Event "*** Biggest EVER Titled Tuesday"]
[Site "Chess.com"]
[Date "2018.04.17"]
[Round "1"]
[White "Kriari"]
[Black "Quiet_Desperation"]
[Result "1-0"]
[WhiteElo "2759"]
[BlackElo "2399"]
[TimeControl "180+2"]
[EndTime "13:07:28 PDT"]
[Termination "Kriari won by resignation"]

1. e4 {[%clk 0:03:01.9]} 1... Nc6 {[%clk 0:02:59.6]} 2. Nf3 {[%clk 0:03:03.1]}
2... d6 {[%clk 0:03:00.6]} 3. d4 {[%clk 0:03:03.8]} 3... Nf6 {[%clk 0:03:02.1]}
4. Bd3 {[%clk 0:03:05]} 4... e5 {[%clk 0:03:02.7]} 5. c3 {[%clk 0:03:05.7]} 5...
Bg4 {[%clk 0:03:02.9]} 6. d5 {[%clk 0:03:03.2]} 6... Ne7 {[%clk 0:02:57.7]} 7.
h3 {[%clk 0:02:59.9]} 7... Bd7 {[%clk 0:02:53.3]} 8. c4 {[%clk 0:02:57.1]} 8...
Ng6 {[%clk 0:02:53.4]} 9. Nc3 {[%clk 0:02:57.8]} 9... Be7 {[%clk 0:02:54.6]} 10.
O-O {[%clk 0:02:49.5]} 10... O-O {[%clk 0:02:50.4]} 11. a3 {[%clk 0:02:45]}
11... c6 {[%clk 0:02:42.4]} 12. Re1 {[%clk 0:02:37.5]} 12... Qc7 {[%clk
0:02:33]} 13. Bf1 {[%clk 0:02:37.5]} 13... h6 {[%clk 0:02:08.9]} 14. Be3 {[%clk
0:02:36.3]} 14... c5 {[%clk 0:02:03.1]} 15. b4 {[%clk 0:02:36]} 15... b6 {[%clk
0:02:04.1]} 16. Rb1 {[%clk 0:02:28.9]} 16... Nh7 {[%clk 0:01:57.8]} 17. Bd3
{[%clk 0:02:11.1]} 17... Ng5 {[%clk 0:01:55.2]} 18. Nxg5 {[%clk 0:01:57.5]}
18... hxg5 {[%clk 0:01:54.3]} 19. Be2 {[%clk 0:01:40.1]} 19... Nf4 {[%clk
0:01:52.5]} 20. Bg4 {[%clk 0:01:37.7]} 20... g6 {[%clk 0:01:46.3]} 21. bxc5
{[%clk 0:01:36.8]} 21... bxc5 {[%clk 0:01:42.1]} 22. Bxd7 {[%clk 0:01:36.9]}
22... Qxd7 {[%clk 0:01:41.7]} 23. Qa4 {[%clk 0:01:38.5]} 23... Qc8 {[%clk
0:01:37.2]} 24. Qc6 {[%clk 0:01:25.3]} 24... Nxh3+ {[%clk 0:00:45.6]} 25. Kh2
{[%clk 0:01:18.5]} 25... Nf4 {[%clk 0:00:45.8]} 26. Qxc8 {[%clk 0:01:18.8]}
26... Rfxc8 {[%clk 0:00:45.7]} 27. Rb7 {[%clk 0:01:20.3]} 27... Bf6 {[%clk
0:00:27.6]} 28. g3 {[%clk 0:01:20.9]} 28... Kg7 {[%clk 0:00:16.1]} 29. gxf4
{[%clk 0:01:18.8]} 29... gxf4 {[%clk 0:00:17.2]} 30. Bd2 {[%clk 0:01:19.5]}
30... Rh8+ {[%clk 0:00:18.1]} 31. Kg2 {[%clk 0:01:21]} 31... Rh5 {[%clk
0:00:16.6]} 32. Nb5 {[%clk 0:01:21.8]} 32... Rah8 {[%clk 0:00:17]} 33. Nxd6
{[%clk 0:01:21.4]} 33... Rh2+ {[%clk 0:00:13.6]} 34. Kf3 {[%clk 0:01:22.8]}
34... R8h3+ {[%clk 0:00:12.8]} 35. Ke2 {[%clk 0:01:23.3]} 35... Rxa3 {[%clk
0:00:13.6]} 36. Rxf7+ {[%clk 0:01:23.5]} 36... Kh6 {[%clk 0:00:14]} 37. Rxf6
{[%clk 0:01:22.7]} 37... Kg7 {[%clk 0:00:10.8]} 38. Rf7+ {[%clk 0:01:20.4]}
38... Kh6 {[%clk 0:00:11.7]} 39. Rxf4 {[%clk 0:01:16.4]} 39... exf4 {[%clk
0:00:11.7]} 40. Bxf4+ {[%clk 0:01:18.3]} 1-0

[Event "*** Biggest EVER Titled Tuesday"]
[Site "Chess.com"]
[Date "2018.04.17"]
[Round "1"]
[White "GMBenjaminBok"]
[Black "Marcin"]
[Result "1-0"]
[WhiteElo "2591"]
[BlackElo "2263"]
[TimeControl "180+2"]
[EndTime "13:07:31 PDT"]
[Termination "GMBenjaminBok won by resignation"]

1. c4 {[%clk 0:03:01]} 1... e5 {[%clk 0:02:55]} 2. Nc3 {[%clk 0:03:02]} 2... Nf6
{[%clk 0:02:55.1]} 3. Nf3 {[%clk 0:03:03.1]} 3... Nc6 {[%clk 0:02:54.7]} 4. g3
{[%clk 0:03:04.5]} 4... d5 {[%clk 0:02:51]} 5. cxd5 {[%clk 0:03:06.1]} 5... Nxd5
{[%clk 0:02:52.9]} 6. Bg2 {[%clk 0:03:07.7]} 6... Nb6 {[%clk 0:02:53.8]} 7. O-O
{[%clk 0:03:08.9]} 7... Be6 {[%clk 0:02:54.3]} 8. a3 {[%clk 0:03:04]} 8... Be7
{[%clk 0:02:53.9]} 9. b4 {[%clk 0:03:04.6]} 9... a6 {[%clk 0:02:54.7]} 10. d3
{[%clk 0:03:03.4]} 10... O-O {[%clk 0:02:55]} 11. Bb2 {[%clk 0:03:04]} 11... f6
{[%clk 0:02:51.8]} 12. Qc2 {[%clk 0:02:53.2]} 12... Qd7 {[%clk 0:02:49.5]} 13.
Rfc1 {[%clk 0:02:50.9]} 13... Rfd8 {[%clk 0:02:23.9]} 14. Ne4 {[%clk 0:02:48.4]}
14... Bf8 {[%clk 0:02:08]} 15. Rab1 {[%clk 0:02:46.6]} 15... Qf7 {[%clk
0:01:59.9]} 16. Ba1 {[%clk 0:02:37.2]} 16... Ba2 {[%clk 0:01:59.4]} 17. Rb2
{[%clk 0:02:35.6]} 17... Be6 {[%clk 0:01:52.9]} 18. Nc5 {[%clk 0:02:34.2]} 18...
Bc8 {[%clk 0:01:26.1]} 19. Rbb1 {[%clk 0:02:22.6]} 19... Nd5 {[%clk 0:01:15.5]}
20. Rd1 {[%clk 0:02:16.2]} 20... Bxc5 {[%clk 0:01:13.4]} 21. bxc5 {[%clk
0:02:15.8]} 21... Rb8 {[%clk 0:01:10.5]} 22. d4 {[%clk 0:02:16.4]} 22... exd4
{[%clk 0:00:58]} 23. Nxd4 {[%clk 0:02:16]} 23... Nxd4 {[%clk 0:00:55]} 24. Rxd4
{[%clk 0:02:17.1]} 24... Be6 {[%clk 0:00:54.3]} 25. Rbd1 {[%clk 0:02:16.8]}
25... f5 {[%clk 0:00:30.1]} 26. e4 {[%clk 0:01:48.9]} 26... fxe4 {[%clk
0:00:29.1]} 27. Bxe4 {[%clk 0:01:50.3]} 27... h6 {[%clk 0:00:27.3]} 28. Bg6
{[%clk 0:01:28.3]} 28... Qf8 {[%clk 0:00:15.7]} 29. Re1 {[%clk 0:01:21.3]} 29...
Bf7 {[%clk 0:00:14.7]} 30. Rg4 {[%clk 0:01:10.7]} 30... Bxg6 {[%clk 0:00:14.4]}
31. Qxg6 {[%clk 0:01:02.7]} 31... Rd7 {[%clk 0:00:09.2]} 32. Qe6+ {[%clk
0:01:02.5]} 32... Qf7 {[%clk 0:00:08.8]} 33. Rxg7+ {[%clk 0:01:02.8]} 1-0

[Event "*** Biggest EVER Titled Tuesday"]
[Site "Chess.com"]
[Date "2018.04.17"]
[Round "1"]
[White "LordIron"]
[Black "Justmig"]
[Result "0-1"]
[WhiteElo "2164"]
[BlackElo "2532"]
[TimeControl "180+2"]
[EndTime "13:07:41 PDT"]
[Termination "Justmig won by resignation"]

1. d4 {[%clk 0:03:01.9]} 1... d5 {[%clk 0:03:00.8]} 2. Nf3 {[%clk 0:03:02.8]}
2... Nf6 {[%clk 0:02:59.8]} 3. c4 {[%clk 0:03:02.7]} 3... c6 {[%clk 0:02:59.9]}
4. g3 {[%clk 0:03:00]} 4... Bg4 {[%clk 0:02:59.4]} 5. Bg2 {[%clk 0:03:00.3]}
5... e6 {[%clk 0:02:58.9]} 6. O-O {[%clk 0:03:00.5]} 6... Nbd7 {[%clk
0:02:59.7]} 7. b3 {[%clk 0:02:55.9]} 7... Bd6 {[%clk 0:02:58]} 8. Bb2 {[%clk
0:02:57.1]} 8... Qb8 {[%clk 0:02:58.9]} 9. Nbd2 {[%clk 0:02:56.8]} 9... O-O
{[%clk 0:02:58.6]} 10. a4 {[%clk 0:02:52.9]} 10... a5 {[%clk 0:02:58.5]} 11. Ba3
{[%clk 0:02:33]} 11... Bxa3 {[%clk 0:02:53.9]} 12. Rxa3 {[%clk 0:02:34.9]} 12...
h6 {[%clk 0:02:53.6]} 13. Qc1 {[%clk 0:02:29.1]} 13... Bf5 {[%clk 0:02:52.3]}
14. Qb2 {[%clk 0:02:26.6]} 14... Qc7 {[%clk 0:02:41.4]} 15. b4 {[%clk
0:02:25.5]} 15... axb4 {[%clk 0:02:41.6]} 16. Qxb4 {[%clk 0:02:27.4]} 16... Ra7
{[%clk 0:02:25.4]} 17. a5 {[%clk 0:02:25]} 17... Rfa8 {[%clk 0:02:25.7]} 18.
Rfa1 {[%clk 0:02:26.6]} 18... Ne4 {[%clk 0:01:53.8]} 19. Nb3 {[%clk 0:02:20.4]}
19... dxc4 {[%clk 0:01:51]} 20. Qxc4 {[%clk 0:02:15.3]} 20... Nd6 {[%clk
0:01:51.3]} 21. Qb4 {[%clk 0:02:08]} 21... Nb5 {[%clk 0:01:50.7]} 22. Ra4 {[%clk
0:02:08.5]} 22... Bc2 {[%clk 0:01:48.3]} 23. Nfd2 {[%clk 0:02:04.8]} 23... Nf6
{[%clk 0:01:40.1]} 24. Rc1 {[%clk 0:02:00.9]} 24... Bxb3 {[%clk 0:01:34.7]} 25.
Nxb3 {[%clk 0:02:02.8]} 25... Qd8 {[%clk 0:01:31.9]} 26. Nc5 {[%clk 0:01:53.4]}
26... Nd5 {[%clk 0:01:13.1]} 27. Qb2 {[%clk 0:01:51.3]} 27... Ndc7 {[%clk
0:01:07.4]} 28. e3 {[%clk 0:01:38.4]} 28... Na6 {[%clk 0:01:08.2]} 29. Nd3
{[%clk 0:01:31.5]} 29... Nb8 {[%clk 0:01:08.6]} 30. Nc5 {[%clk 0:01:25.2]} 30...
Nd7 {[%clk 0:01:08.7]} 31. Nd3 {[%clk 0:01:14.2]} 31... Rxa5 {[%clk 0:01:05.5]}
32. Rb4 {[%clk 0:01:05.8]} 32... Ra2 {[%clk 0:01:05.1]} 33. Qb3 {[%clk 0:01:04]}
33... R8a3 {[%clk 0:01:01.7]} 34. Qd1 {[%clk 0:00:57.4]} 34... Qa5 {[%clk
0:01:00]} 35. Rbc4 {[%clk 0:00:50.3]} 35... Nb6 {[%clk 0:00:53.9]} 36. Bf1
{[%clk 0:00:44]} 36... Nxc4 {[%clk 0:00:52.8]} 37. Rxc4 {[%clk 0:00:45.3]} 37...
Qd2 {[%clk 0:00:50.4]} 38. Qb1 {[%clk 0:00:38.3]} 38... Rxd3 {[%clk 0:00:47.6]}
0-1

[Event "*** Biggest EVER Titled Tuesday"]
[Site "Chess.com"]
[Date "2018.04.17"]
[Round "1"]
[White "joshuacao"]
[Black "maximlavrov"]
[Result "0-1"]
[WhiteElo "2012"]
[BlackElo "2459"]
[TimeControl "180+2"]
[EndTime "13:07:47 PDT"]
[Termination "maximlavrov won by resignation"]

1. e4 {[%clk 0:03:01.9]} 1... g6 {[%clk 0:02:53]} 2. d4 {[%clk 0:03:02.1]} 2...
Bg7 {[%clk 0:02:54.4]} 3. Nc3 {[%clk 0:03:02.7]} 3... d6 {[%clk 0:02:55.9]} 4.
f4 {[%clk 0:03:02.8]} 4... a6 {[%clk 0:02:57.2]} 5. Nf3 {[%clk 0:03:03.3]} 5...
b5 {[%clk 0:02:58.6]} 6. Bd3 {[%clk 0:03:04]} 6... Bb7 {[%clk 0:02:59.9]} 7. O-O
{[%clk 0:03:04.2]} 7... Nd7 {[%clk 0:02:58.4]} 8. e5 {[%clk 0:02:32.2]} 8... Nh6
{[%clk 0:02:56]} 9. Qe1 {[%clk 0:01:57.9]} 9... O-O {[%clk 0:02:54.6]} 10. Qh4
{[%clk 0:01:00.3]} 10... c5 {[%clk 0:02:41.8]} 11. f5 {[%clk 0:00:51.1]} 11...
Nxf5 {[%clk 0:02:40.8]} 12. Bxf5 {[%clk 0:00:51.9]} 12... gxf5 {[%clk
0:02:42.7]} 13. Bh6 {[%clk 0:00:42.8]} 13... f6 {[%clk 0:01:57.9]} 14. Qg3
{[%clk 0:00:29.7]} 14... Rf7 {[%clk 0:01:55.1]} 15. e6 {[%clk 0:00:30.1]} 15...
Kh8 {[%clk 0:01:56.6]} 16. exf7 {[%clk 0:00:25.9]} 16... Bxh6 {[%clk 0:01:58.1]}
17. Rad1 {[%clk 0:00:21.7]} 17... Qf8 {[%clk 0:01:38.1]} 18. Nh4 {[%clk
0:00:22.2]} 18... f4 {[%clk 0:01:38.7]} 19. Qh3 {[%clk 0:00:21.4]} 19... Nb6
{[%clk 0:01:08.3]} 20. Nf5 {[%clk 0:00:20.1]} 20... Bg5 {[%clk 0:01:09.5]} 21.
d5 {[%clk 0:00:19.5]} 21... Qxf7 {[%clk 0:01:08.9]} 22. Qf3 {[%clk 0:00:17.5]}
22... Bc8 {[%clk 0:01:05.7]} 23. g4 {[%clk 0:00:11]} 23... fxg3 {[%clk
0:01:04.5]} 24. hxg3 {[%clk 0:00:11.3]} 24... Nc4 {[%clk 0:01:05.2]} 25. b3
{[%clk 0:00:09.7]} 25... Ne5 {[%clk 0:01:06.4]} 26. Qe2 {[%clk 0:00:05.3]} 26...
Bd7 {[%clk 0:01:01.7]} 27. Ne4 {[%clk 0:00:04.8]} 27... Rg8 {[%clk 0:01:03.1]}
28. c4 {[%clk 0:00:05.4]} 28... b4 {[%clk 0:01:03.9]} 29. Kg2 {[%clk 0:00:05.9]}
29... h6 {[%clk 0:00:42.8]} 30. Rf2 {[%clk 0:00:06.2]} 30... Qh7 {[%clk
0:00:43.5]} 31. g4 {[%clk 0:00:04.8]} 31... Nxg4 {[%clk 0:00:36.7]} 0-1

[Event "*** Biggest EVER Titled Tuesday"]
[Site "Chess.com"]
[Date "2018.04.17"]
[Round "1"]
[White "Arm-Akiba"]
[Black "PrinceMurad09"]
[Result "1-0"]
[WhiteElo "2667"]
[BlackElo "2352"]
[TimeControl "180+2"]
[EndTime "13:07:48 PDT"]
[Termination "Arm-Akiba won by resignation"]

1. d4 {[%clk 0:02:45.5]} 1... Nf6 {[%clk 0:02:59.5]} 2. Nf3 {[%clk 0:02:43.7]}
2... g6 {[%clk 0:02:58.3]} 3. g3 {[%clk 0:02:42]} 3... d5 {[%clk 0:02:56.1]} 4.
Bg2 {[%clk 0:02:42.5]} 4... Bg7 {[%clk 0:02:54.9]} 5. O-O {[%clk 0:02:43.2]}
5... O-O {[%clk 0:02:55.3]} 6. c4 {[%clk 0:02:42.9]} 6... c6 {[%clk 0:02:55.9]}
7. b3 {[%clk 0:02:41.4]} 7... Ne4 {[%clk 0:02:53.4]} 8. Bb2 {[%clk 0:02:41.8]}
8... Nd7 {[%clk 0:02:53.8]} 9. e3 {[%clk 0:02:41.3]} 9... f5 {[%clk 0:02:47.8]}
10. Nc3 {[%clk 0:02:37.9]} 10... Ndf6 {[%clk 0:02:48.3]} 11. Ne5 {[%clk
0:02:30.8]} 11... Nxc3 {[%clk 0:02:47.1]} 12. Bxc3 {[%clk 0:02:30.6]} 12... Ne4
{[%clk 0:02:48.1]} 13. Bb2 {[%clk 0:02:29.6]} 13... Be6 {[%clk 0:02:45.8]} 14.
Rc1 {[%clk 0:02:24.5]} 14... Nd6 {[%clk 0:02:44.8]} 15. cxd5 {[%clk 0:02:07.7]}
15... Bxd5 {[%clk 0:02:43.8]} 16. Bxd5+ {[%clk 0:02:05.5]} 16... cxd5 {[%clk
0:02:45.7]} 17. Nd3 {[%clk 0:02:07.1]} 17... b6 {[%clk 0:02:44.6]} 18. Nf4
{[%clk 0:02:05.3]} 18... Nf7 {[%clk 0:02:07.5]} 19. Ne6 {[%clk 0:02:03.8]} 19...
Qd6 {[%clk 0:02:08.6]} 20. Nxf8 {[%clk 0:02:04.7]} 20... Rxf8 {[%clk 0:02:10.5]}
21. Qc2 {[%clk 0:02:05.9]} 21... Ng5 {[%clk 0:02:07.8]} 22. Qc6 {[%clk
0:02:03.1]} 22... Qb4 {[%clk 0:00:39.2]} 23. Bc3 {[%clk 0:01:33.1]} 23... Qa3
{[%clk 0:00:33.2]} 24. Qxd5+ {[%clk 0:01:34]} 24... e6 {[%clk 0:00:34.3]} 25.
Qc4 {[%clk 0:01:30.2]} 25... Qxa2 {[%clk 0:00:31.7]} 26. Bb4 {[%clk 0:01:23.6]}
26... b5 {[%clk 0:00:12.9]} 27. Qc2 {[%clk 0:01:19.2]} 27... Qxc2 {[%clk
0:00:11.6]} 28. Rxc2 {[%clk 0:01:21.1]} 28... Rb8 {[%clk 0:00:12.3]} 29. Rfc1
{[%clk 0:01:21.1]} 29... a6 {[%clk 0:00:09.8]} 30. Rc8+ {[%clk 0:01:20.8]} 30...
Rxc8 {[%clk 0:00:11.2]} 31. Rxc8+ {[%clk 0:01:22.4]} 31... Kf7 {[%clk
0:00:13.1]} 32. Rc7+ {[%clk 0:01:23.8]} 32... Kg8 {[%clk 0:00:14.2]} 33. Rc6
{[%clk 0:01:24.9]} 33... e5 {[%clk 0:00:14.4]} 34. d5 {[%clk 0:01:23.9]} 34...
Nf3+ {[%clk 0:00:16.3]} 35. Kg2 {[%clk 0:01:24.1]} 35... e4 {[%clk 0:00:17.9]}
36. d6 {[%clk 0:01:22.8]} 36... Ne5 {[%clk 0:00:19.8]} 37. Rxa6 {[%clk 0:01:21]}
37... Bf8 {[%clk 0:00:18.1]} 38. Ra8 {[%clk 0:01:20.1]} 38... Kf7 {[%clk
0:00:18.8]} 39. Rxf8+ {[%clk 0:01:18.4]} 1-0

[Event "*** Biggest EVER Titled Tuesday"]
[Site "Chess.com"]
[Date "2018.04.17"]
[Round "1"]
[White "vuqaresedli"]
[Black "gmjlh"]
[Result "0-1"]
[WhiteElo "2169"]
[BlackElo "2551"]
[TimeControl "180+2"]
[EndTime "13:07:49 PDT"]
[Termination "gmjlh won by resignation"]

1. Nf3 {[%clk 0:02:59.7]} 1... d5 {[%clk 0:03:00.5]} 2. g3 {[%clk 0:03:00.7]}
2... Nf6 {[%clk 0:03:01.8]} 3. Bg2 {[%clk 0:03:02.2]} 3... e6 {[%clk 0:03:03.1]}
4. O-O {[%clk 0:03:03.4]} 4... Be7 {[%clk 0:03:04.6]} 5. d3 {[%clk 0:03:04.9]}
5... O-O {[%clk 0:03:06]} 6. Nbd2 {[%clk 0:03:06.4]} 6... Nc6 {[%clk 0:03:06.7]}
7. e4 {[%clk 0:03:08]} 7... dxe4 {[%clk 0:03:05.4]} 8. dxe4 {[%clk 0:03:09.8]}
8... e5 {[%clk 0:03:06.5]} 9. c3 {[%clk 0:03:08.3]} 9... b6 {[%clk 0:03:00.2]}
10. Re1 {[%clk 0:03:00.3]} 10... a5 {[%clk 0:02:59.1]} 11. a4 {[%clk 0:02:58.1]}
11... Ba6 {[%clk 0:02:49.5]} 12. Bf1 {[%clk 0:02:58.7]} 12... Bxf1 {[%clk
0:02:50]} 13. Kxf1 {[%clk 0:02:57.4]} 13... Qd3+ {[%clk 0:02:50.2]} 14. Kg2
{[%clk 0:02:58.3]} 14... Rad8 {[%clk 0:02:50.1]} 15. Re3 {[%clk 0:02:57.4]}
15... Qd7 {[%clk 0:02:50.2]} 16. h3 {[%clk 0:02:49.7]} 16... Bc5 {[%clk
0:02:40.2]} 17. Re1 {[%clk 0:02:50]} 17... Qd3 {[%clk 0:02:40.9]} 18. Qe2 {[%clk
0:02:50]} 18... Ne8 {[%clk 0:02:22.5]} 19. Nc4 {[%clk 0:02:48.9]} 19... f6
{[%clk 0:02:15.6]} 20. Qxd3 {[%clk 0:02:33.9]} 20... Rxd3 {[%clk 0:02:15.5]} 21.
Be3 {[%clk 0:02:35.3]} 21... Bxe3 {[%clk 0:02:15.3]} 22. Rxe3 {[%clk 0:02:35.9]}
22... Rxe3 {[%clk 0:02:16.4]} 23. Nxe3 {[%clk 0:02:35.9]} 23... Nd6 {[%clk
0:02:17.7]} 24. Nd2 {[%clk 0:02:34.9]} 24... Ne7 {[%clk 0:02:17.7]} 25. Kf3
{[%clk 0:02:31.5]} 25... Kf7 {[%clk 0:02:18]} 26. Ke2 {[%clk 0:02:30.9]} 26...
Ke6 {[%clk 0:02:18.2]} 27. f4 {[%clk 0:02:32.2]} 27... exf4 {[%clk 0:02:16]} 28.
gxf4 {[%clk 0:02:33.2]} 28... Rd8 {[%clk 0:02:14.5]} 29. Rg1 {[%clk 0:02:30.7]}
29... g6 {[%clk 0:02:14.6]} 30. h4 {[%clk 0:02:31.6]} 30... Nb7 {[%clk
0:02:08.5]} 31. h5 {[%clk 0:02:29.6]} 31... Nc5 {[%clk 0:02:08.8]} 32. hxg6
{[%clk 0:02:27.1]} 32... hxg6 {[%clk 0:02:08.8]} 33. b3 {[%clk 0:02:28.4]} 33...
Rh8 {[%clk 0:01:53.3]} 34. c4 {[%clk 0:02:16.8]} 34... c6 {[%clk 0:01:37.5]} 35.
Rg2 {[%clk 0:02:10.2]} 35... Rh1 {[%clk 0:01:37.3]} 36. Nc2 {[%clk 0:02:09.9]}
36... Kf7 {[%clk 0:01:32.7]} 37. Nd4 {[%clk 0:02:10.4]} 37... Rh3 {[%clk
0:01:27.7]} 38. e5 {[%clk 0:02:10.3]} 38... Nd3 {[%clk 0:01:21.7]} 39. e6+
{[%clk 0:02:06.8]} 39... Kg7 {[%clk 0:01:22.2]} 40. Kd1 {[%clk 0:01:55.3]} 40...
Nxf4 {[%clk 0:01:20.1]} 41. Rf2 {[%clk 0:01:53.7]} 41... g5 {[%clk 0:01:20.8]}
42. Kc2 {[%clk 0:01:52.9]} 42... Kg6 {[%clk 0:01:21.6]} 43. c5 {[%clk
0:01:53.9]} 43... bxc5 {[%clk 0:01:20.6]} 44. Ne2 {[%clk 0:01:54.4]} 44... Nxe6
{[%clk 0:01:20.5]} 45. Nc4 {[%clk 0:01:55.9]} 45... Nd4+ {[%clk 0:01:14.3]} 46.
Nxd4 {[%clk 0:01:56.2]} 46... cxd4 {[%clk 0:01:16.2]} 47. Nxa5 {[%clk
0:01:57.8]} 47... g4 {[%clk 0:01:16.3]} 48. Rg2 {[%clk 0:01:52.6]} 48... f5
{[%clk 0:01:14.5]} 49. Nc4 {[%clk 0:01:54]} 49... Rc3+ {[%clk 0:01:14.8]} 50.
Kb2 {[%clk 0:01:54.2]} 50... Nd5 {[%clk 0:01:15]} 51. a5 {[%clk 0:01:55.2]}
51... Nb4 {[%clk 0:01:15.5]} 52. Ka3 {[%clk 0:01:53.4]} 52... c5 {[%clk
0:01:14.1]} 53. Ka4 {[%clk 0:01:51.4]} 53... Kg5 {[%clk 0:01:14.1]} 54. Ne5
{[%clk 0:01:50.8]} 54... g3 {[%clk 0:01:11.2]} 55. Kb5 {[%clk 0:01:47.7]} 55...
f4 {[%clk 0:01:11.7]} 56. a6 {[%clk 0:01:46.3]} 56... Nxa6 {[%clk 0:01:12.6]}
57. Kxa6 {[%clk 0:01:47.3]} 57... Rxb3 {[%clk 0:01:12.7]} 58. Rc2 {[%clk
0:01:48.4]} 58... Rc3 {[%clk 0:01:08.6]} 59. Ra2 {[%clk 0:01:47.6]} 59... f3
{[%clk 0:01:08.9]} 60. Kb5 {[%clk 0:01:47.2]} 60... f2 {[%clk 0:01:10.1]} 61.
Ra1 {[%clk 0:01:47.5]} 61... g2 {[%clk 0:01:11.6]} 0-1

[Event "*** Biggest EVER Titled Tuesday"]
[Site "Chess.com"]
[Date "2018.04.17"]
[Round "1"]
[White "Princec7"]
[Black "Andreikka"]
[Result "0-1"]
[WhiteElo "2414"]
[BlackElo "2803"]
[TimeControl "180+2"]
[EndTime "13:07:52 PDT"]
[Termination "Andreikka won by resignation"]

1. e4 {[%clk 0:03:01.4]} 1... c6 {[%clk 0:02:59]} 2. d4 {[%clk 0:02:57.6]} 2...
d5 {[%clk 0:02:59.7]} 3. exd5 {[%clk 0:02:58.6]} 3... cxd5 {[%clk 0:03:00.6]} 4.
c4 {[%clk 0:03:00.2]} 4... Nf6 {[%clk 0:03:00.6]} 5. Nc3 {[%clk 0:03:01.7]} 5...
Nc6 {[%clk 0:03:01.3]} 6. Nf3 {[%clk 0:03:02.4]} 6... Bg4 {[%clk 0:02:59.5]} 7.
cxd5 {[%clk 0:03:03.3]} 7... Nxd5 {[%clk 0:02:59.6]} 8. Qb3 {[%clk 0:03:02.7]}
8... Bxf3 {[%clk 0:03:00.4]} 9. gxf3 {[%clk 0:03:03]} 9... Nb6 {[%clk
0:03:01.9]} 10. d5 {[%clk 0:02:48.9]} 10... Nd4 {[%clk 0:02:59]} 11. Qd1 {[%clk
0:02:40.3]} 11... e5 {[%clk 0:02:39.7]} 12. dxe6 {[%clk 0:02:40.4]} 12... Qf6
{[%clk 0:02:34.1]} 13. Bg2 {[%clk 0:02:11.2]} 13... Nxe6 {[%clk 0:02:24]} 14.
O-O {[%clk 0:02:04.4]} 14... Be7 {[%clk 0:02:24.7]} 15. Ne4 {[%clk 0:02:02.2]}
15... Qe5 {[%clk 0:02:23.8]} 16. Re1 {[%clk 0:01:32.3]} 16... Rd8 {[%clk
0:02:24.1]} 17. Bd2 {[%clk 0:01:31.5]} 17... O-O {[%clk 0:02:20.4]} 18. Bc3
{[%clk 0:01:21.2]} 18... Qh5 {[%clk 0:02:05.3]} 19. Qc1 {[%clk 0:01:19.2]} 19...
Nd5 {[%clk 0:02:01.2]} 20. Ng3 {[%clk 0:01:18.7]} 20... Qg6 {[%clk 0:02:02.6]}
21. Be5 {[%clk 0:01:16.1]} 21... Rc8 {[%clk 0:02:00]} 22. Qd1 {[%clk 0:01:07.2]}
22... Rfd8 {[%clk 0:02:00.7]} 23. Qa4 {[%clk 0:01:04.6]} 23... Nc5 {[%clk
0:01:34.8]} 24. Qg4 {[%clk 0:00:59.4]} 24... Nd3 {[%clk 0:01:34.9]} 25. Re2
{[%clk 0:00:55.5]} 25... Bf6 {[%clk 0:01:12.1]} 26. Bxf6 {[%clk 0:00:46.7]}
26... Nxf6 {[%clk 0:01:05]} 27. Qxg6 {[%clk 0:00:47.1]} 27... hxg6 {[%clk
0:01:06.9]} 28. Rd2 {[%clk 0:00:41.2]} 28... Nf4 {[%clk 0:01:05.3]} 29. Rxd8+
{[%clk 0:00:40.6]} 29... Rxd8 {[%clk 0:01:07.2]} 30. Ne4 {[%clk 0:00:40.1]}
30... Nxe4 {[%clk 0:00:57.1]} 31. fxe4 {[%clk 0:00:42]} 31... Rd2 {[%clk
0:00:58.7]} 32. b3 {[%clk 0:00:25.9]} 32... Nd3 {[%clk 0:00:56.2]} 33. f3 {[%clk
0:00:23.7]} 33... g5 {[%clk 0:00:54.2]} 34. Bf1 {[%clk 0:00:24]} 34... Ne5
{[%clk 0:00:55.4]} 35. Bg2 {[%clk 0:00:23.9]} 35... f6 {[%clk 0:00:55.2]} 36. a4
{[%clk 0:00:24.4]} 36... Rb2 {[%clk 0:00:55]} 37. Rc1 {[%clk 0:00:20.2]} 37...
Rxb3 {[%clk 0:00:55.8]} 38. Kf2 {[%clk 0:00:21.4]} 38... Nd3+ {[%clk 0:00:55.9]}
0-1

[Event "*** Biggest EVER Titled Tuesday"]
[Site "Chess.com"]
[Date "2018.04.17"]
[Round "1"]
[White "Korchmar_Vasiliy"]
[Black "MFBerna"]
[Result "1-0"]
[WhiteElo "2664"]
[BlackElo "2350"]
[TimeControl "180+2"]
[EndTime "13:07:53 PDT"]
[Termination "Korchmar_Vasiliy won by resignation"]

1. d4 {[%clk 0:02:56.5]} 1... d5 {[%clk 0:02:09.7]} 2. Nf3 {[%clk 0:02:56.6]}
2... Nf6 {[%clk 0:02:09.8]} 3. Bf4 {[%clk 0:02:57.8]} 3... g6 {[%clk 0:02:08.4]}
4. e3 {[%clk 0:02:56.9]} 4... Bg7 {[%clk 0:02:10]} 5. Be2 {[%clk 0:02:54.2]}
5... O-O {[%clk 0:02:11.6]} 6. O-O {[%clk 0:02:54.9]} 6... c6 {[%clk 0:02:07.6]}
7. Nbd2 {[%clk 0:02:49.1]} 7... Bg4 {[%clk 0:02:06.9]} 8. h3 {[%clk 0:02:49.5]}
8... Bxf3 {[%clk 0:02:07.7]} 9. Nxf3 {[%clk 0:02:51.2]} 9... Re8 {[%clk
0:02:01.5]} 10. c4 {[%clk 0:02:50.8]} 10... Nbd7 {[%clk 0:01:55.4]} 11. b4
{[%clk 0:02:39.3]} 11... dxc4 {[%clk 0:01:49.2]} 12. Bxc4 {[%clk 0:02:40.7]}
12... Nb6 {[%clk 0:01:49.8]} 13. Bb3 {[%clk 0:02:37.4]} 13... Nbd5 {[%clk
0:01:46]} 14. Bg3 {[%clk 0:02:23]} 14... Nxb4 {[%clk 0:01:43.4]} 15. Ne5 {[%clk
0:02:24.2]} 15... e6 {[%clk 0:01:42.3]} 16. Bh4 {[%clk 0:02:16.9]} 16... Qc7
{[%clk 0:01:16]} 17. Qf3 {[%clk 0:02:11.8]} 17... Nfd5 {[%clk 0:01:02.6]} 18. e4
{[%clk 0:02:09.4]} 18... f6 {[%clk 0:00:33.5]} 19. exd5 {[%clk 0:01:59]} 19...
fxe5 {[%clk 0:00:33.7]} 20. dxe6 {[%clk 0:02:00.6]} 20... Nd5 {[%clk 0:00:24.1]}
21. Bxd5 {[%clk 0:01:50.6]} 21... cxd5 {[%clk 0:00:26]} 22. Qxd5 {[%clk
0:01:52.1]} 22... Qc6 {[%clk 0:00:26.9]} 23. Qxc6 {[%clk 0:01:42.6]} 23... bxc6
{[%clk 0:00:28.8]} 24. e7 {[%clk 0:01:44.4]} 24... exd4 {[%clk 0:00:26.1]} 25.
Rac1 {[%clk 0:01:45.8]} 25... Rac8 {[%clk 0:00:27.3]} 26. Rc5 {[%clk 0:01:42.4]}
26... Kf7 {[%clk 0:00:27.4]} 27. Rfc1 {[%clk 0:01:43.5]} 27... Bf6 {[%clk
0:00:25.5]} 28. Bxf6 {[%clk 0:01:38.7]} 28... Kxf6 {[%clk 0:00:27.4]} 29. Rd1
{[%clk 0:01:40.4]} 29... Rxe7 {[%clk 0:00:27.1]} 30. Rxd4 {[%clk 0:01:41]} 30...
h5 {[%clk 0:00:24.2]} 31. f4 {[%clk 0:01:31.3]} 31... Re2 {[%clk 0:00:21.6]} 32.
Rd6+ {[%clk 0:01:29.2]} 32... Kg7 {[%clk 0:00:22]} 33. Rg5 {[%clk 0:01:27.8]}
33... Rxa2 {[%clk 0:00:20.5]} 34. Rgxg6+ {[%clk 0:01:23]} 34... Kf7 {[%clk
0:00:21.7]} 35. f5 {[%clk 0:01:12.3]} 35... Rb8 {[%clk 0:00:05.9]} 36. Rd7+
{[%clk 0:01:10]} 36... Kf8 {[%clk 0:00:07.3]} 37. f6 {[%clk 0:01:05.3]} 37...
Rb1+ {[%clk 0:00:06.8]} 38. Kh2 {[%clk 0:01:06.5]} 38... Rf1 {[%clk 0:00:07.9]}
39. Rh6 {[%clk 0:01:01.7]} 1-0